bitfinex/quotes_SOLUSD_20241215
["timestamp","ask_amount","ask_price","bid_price","bid_amount"]
[1734276424979,0.12549,220.7,220.59,6.212]
[1734276425687,15.8723971,220.71,220.59,6.212]
[1734276425984,0.12549,220.7,220.59,6.212]
[1734276427083,0.12549,220.69,220.59,6.212]
[1734276427577,24.027864,220.67,220.59,6.212]
[1734276434472,4.5449971,220.71,220.59,6.212]
[1734276434786,0.12549,220.7,220.59,6.212]
[1734276435661,11.3269,220.72,220.59,6.212]
[1734276435662,11.3269,220.72,220.6,1.6312]
[1734276435864,0.5418404,220.73,220.62,20.0]
[1734276436296,0.12549,220.72,220.62,20.0]
[1734276437268,0.25098,220.72,220.62,20.0]
[1734276437779,24.027864,220.72,220.62,20.0]
[1734276437977,24.027864,220.72,220.61,1.6312]
[1734276437978,0.12549,220.68,220.61,1.6312]
[1734276438182,0.25098,220.68,220.61,1.6312]
[1734276438393,20.25098,220.68,220.61,1.6312]
[1734276439578,0.12549,220.66,220.61,1.6312]
[1734276440278,0.25098,220.66,220.61,1.6312]
[1734276441398,0.25098,220.66,220.53,6.1186]
[1734276441694,0.12549,220.62,220.54,1.6312]
[1734276442307,0.12549,220.63,220.54,1.6312]
[1734276442509,0.12549,220.59,220.54,1.6312]
[1734276442877,0.25098,220.59,220.54,1.6312]
[1734276451393,23.776884,220.6,220.54,1.6312]
[1734276451394,0.12549,220.6,220.54,1.6312]
[1734276452534,23.902374,220.6,220.54,1.6312]
[1734276453143,0.12549,220.59,220.54,1.6312]
[1734276454846,11.3309,220.64,220.54,1.6312]
[1734276455009,0.12549,220.63,220.54,1.6312]
[1734276456030,24.027864,220.63,220.54,1.6312]
[1734276456934,24.027864,220.63,220.55,6.0969]
[1734276458943,24.027864,220.63,220.54,1.6312]
[1734276458944,24.027864,220.61,220.54,1.6312]
[1734276463657,11.3317,220.62,220.54,1.6312]
[1734276464049,0.12549,220.61,220.54,1.6312]
[1734276464252,2.66293323,220.65,220.54,1.6312]
[1734276464253,20.0,220.63,220.54,1.6312]
[1734276464870,0.12549,220.64,220.54,1.6312]
[1734276465941,0.25098,220.64,220.54,1.6312]
[1734276466544,11.33,220.66,220.54,1.6312]
[1734276466861,11.33,220.66,220.55,6.0969]
[1734276467185,84.37867607,220.67,220.55,6.0969]
[1734276467774,24.027864,220.66,220.55,6.0969]
[1734276468379,24.027864,220.66,220.56,1.605]
[1734276475680,11.328,220.7,220.56,2.28491721]
[1734276475994,23.902374,220.69,220.57,1.5166]
[1734276476665,0.12549,220.68,220.57,1.5166]
[1734276478089,7.12344453,220.81,220.63,20.12549]
[1734276478295,1.79090593,220.85,220.7,1.5166]
[1734276478660,22.639,220.86,220.7,1.5166]
[1734276479184,33.9586,220.86,220.7,1.5166]
[1734276480172,2.70692873,220.82,220.7,1.5166]
[1734276481376,11.3196,220.86,220.7,16.01413609]
[1734276481591,11.3196,220.86,220.71,7.19713197]
[1734276482095,2.68277353,220.84,220.71,7.19713197]
[1734276484592,11.3211,220.83,220.71,7.19713197]
[1734276484893,20.0,220.83,220.7,1.5166]
[1734276490421,6.2512,220.97,220.79,21.6274]
[1734276490707,6.2512,220.97,220.79,28.82453197]
[1734276491275,17.565,220.97,220.79,28.82453197]
[1734276491698,0.25098,220.94,220.79,28.82453197]
[1734276491908,23.902374,220.92,220.79,28.82453197]
[1734276493486,23.902374,220.92,220.8,20.0]
[1734276495406,0.12549,220.94,220.8,20.0]
[1734276495407,20.0,220.94,220.8,20.0]
[1734276495709,23.776884,220.93,220.82,20.0]
[1734276498592,0.12549,220.92,220.83,6.5148]
[1734276499516,0.25098,220.92,220.83,6.5148]
[1734276505200,0.12549,220.89,220.8,7.19713197]
[1734276505392,24.027864,220.89,220.79,1.6274]
[1734276505593,0.25098,220.89,220.79,1.6274]
[1734276505794,2.01048505,220.89,220.79,1.6274]
[1734276506209,0.25098,220.87,220.79,1.6274]
[1734276516225,0.12549,220.87,220.79,1.6274]
[1734276522038,0.25098,220.87,220.79,1.6274]
[1734276532474,24.027864,220.85,220.73,1.592]
[1734276532872,24.027864,220.81,220.73,1.592]
[1734276541158,24.027864,220.79,220.73,1.592]
[1734276541560,26.70384655,220.79,220.73,1.592]
[1734276541780,26.70384655,220.79,220.68,1.592]
[1734276543890,24.027864,220.77,220.68,1.592]
[1734276544583,24.027864,220.73,220.68,1.592]
[1734276545381,0.12549,220.74,220.68,1.592]
[1734276545583,0.25098,220.74,220.68,1.592]
[1734276554208,24.027864,220.74,220.68,1.592]
[1734276555115,0.25098,220.74,220.68,1.592]
[1734276556813,24.027864,220.74,220.68,1.592]
[1734276558620,0.12549,220.72,220.68,1.592]
[1734276558913,24.027864,220.72,220.63,1.5291]
[1734276566207,11.3244,220.77,220.63,1.5291]
[1734276566408,23.776884,220.76,220.63,1.5291]
[1734276566812,0.25098,220.75,220.63,1.5291]
[1734276569818,0.12549,220.73,220.63,1.5291]
[1734276570001,24.027864,220.73,220.63,1.5291]
[1734276571938,0.12549,220.73,220.63,1.5291]
[1734276578454,1.83774109,220.78,220.64,20.0]
[1734276578455,20.0,220.77,220.64,20.0]
[1734276578624,0.12549,220.75,220.64,20.0]
[1734276579149,0.25098,220.77,220.64,20.0]
[1734276579344,24.027864,220.75,220.64,20.0]
[1734276583829,0.25098,220.75,220.64,20.0]
[1734276594569,0.12549,220.75,220.65,8.0286]
[1734276594754,20.0,220.79,220.65,8.0286]
[1734276594755,20.0,220.77,220.65,8.0286]
[1734276595138,0.25098,220.77,220.65,8.0286]
[1734276596669,20.0,220.79,220.66,1.5317]
[1734276596877,0.12549,220.78,220.66,1.5317]
[1734276597079,0.25098,220.78,220.66,1.5317]
[1734276601586,11.3208,220.84,220.7,1.5317]
[1734276601884,11.3208,220.84,220.72,20.0]
[1734276601885,0.12549,220.83,220.72,20.0]
[1734276602062,11.3208,220.84,220.72,20.0]
[1734276602263,0.12549,220.83,220.72,20.0]
[1734276602763,0.25098,220.83,220.72,20.0]
[1734276603388,0.12549,220.83,220.73,8.0286]
[1734276603978,0.25098,220.81,220.73,8.0286]
[1734276604691,24.027864,220.81,220.73,8.0286]
[1734276606778,0.25098,220.81,220.73,8.0286]
[1734276609313,24.027864,220.79,220.73,8.0286]
[1734276611978,24.027864,220.79,220.73,1.5317]
[1734276612287,24.027864,220.77,220.68,7.5221]
[1734276613090,0.12549,220.75,220.68,7.5221]
[1734276613389,0.25098,220.75,220.68,7.5221]
[1734276613990,24.027864,220.75,220.68,7.5221]
[1734276615526,24.027864,220.73,220.68,1.5071]
[1734276620587,0.12549,220.69,220.63,8.0746]
[1734276620795,0.25098,220.68,220.63,8.0746]
[1734276621634,0.25098,220.68,220.63,1.6632]
[1734276623916,0.12549,220.64,220.63,1.6632]
[1734276625223,0.25098,220.65,220.63,1.6632]
[1734276625626,0.12549,220.65,220.63,1.6632]
[1734276626249,11.3273,220.71,220.63,1.6632]
[1734276626555,13.16054392,220.75,220.63,1.6632]
[1734276626726,11.3253,220.75,220.63,1.6632]
[1734276627038,0.12549,220.7,220.63,1.6632]
[1734276628409,2.75941777,220.71,220.63,1.6632]
[1734276629018,0.12549,220.7,220.63,1.6632]
[1734276631160,0.25098,220.68,220.63,1.6632]
[1734276631714,24.027864,220.68,220.63,1.6632]
[1734276636858,0.12549,220.68,220.63,1.6632]
[1734276647785,0.25098,220.68,220.63,1.6632]
[1734276652597,24.027864,220.68,220.63,1.6632]
[1734276656495,0.12549,220.68,220.63,1.6632]
[1734276656693,24.027864,220.7,220.63,1.6632]
[1734276657485,11.3264,220.73,220.63,1.6632]
[1734276657688,23.902374,220.72,220.63,1.6632]
[1734276658298,26.52949929,220.72,220.63,1.6632]
[1734276659577,0.25098,220.71,220.63,1.6632]
[1734276659992,20.0,220.75,220.64,6.4815]
[1734276660703,20.0,220.75,220.65,1.6622]
[1734276660909,11.3234,220.78,220.65,2.34181171]
[1734276661114,93.0217,220.82,220.68,8.1437]
[1734276661408,11.3217,220.82,220.68,8.1437]
[1734276661621,11.3217,220.82,220.69,0.67950351]
[1734276662118,1.8436102,220.84,220.73,20.0]
[1734276662296,11.3171,220.91,220.74,1.6622]
[1734276662495,0.12549,220.9,220.74,1.6622]
[1734276662704,11.3171,220.91,220.74,1.6622]
[1734276663392,20.0,220.88,220.74,1.6622]
[1734276663732,0.12549,220.84,220.74,1.6622]
[1734276663887,24.027864,220.84,220.74,1.6622]
[1734276664321,11.3171,220.91,220.75,7.16082886]
[1734276664322,20.0,220.91,220.75,7.16082886]
[1734276664506,20.12549,220.9,220.75,7.16082886]
[1734276664711,20.0,220.9,220.75,7.16082886]
[1734276665288,0.12549,220.89,220.75,7.16082886]
[1734276665524,11.3177,220.9,220.79,1.6622]
[1734276665883,0.12549,220.89,220.79,1.6622]
[1734276666194,0.12549,220.89,220.8,6.4815]
[1734276666907,23.902374,220.89,220.8,6.4815]
[1734276667102,0.12549,220.89,220.8,6.4815]
[1734276668226,23.902374,220.89,220.8,6.4815]
[1734276670734,0.12549,220.86,220.8,6.4815]
[1734276670937,23.902374,220.86,220.8,6.4815]
[1734276671638,11.3183,220.88,220.8,6.4815]
[1734276671639,24.027864,220.87,220.8,6.4815]
[1734276674019,44.027864,220.83,220.79,1.6622]
[1734276682148,43.902374,220.83,220.79,1.6622]
[1734276682847,20.0,220.83,220.79,1.6622]
[1734276683624,20.0,220.87,220.79,1.6622]
[1734276683829,23.776884,220.86,220.79,1.6622]
[1734276689045,0.25098,220.85,220.79,1.6622]
[1734276691452,23.776884,220.86,220.79,1.6622]
[1734276695633,0.12549,220.85,220.79,1.6622]
[1734276695838,0.25098,220.85,220.79,1.6622]
[1734276696647,23.776884,220.86,220.79,1.6622]
[1734276697144,0.25098,220.85,220.79,1.6622]
[1734276697454,23.902374,220.83,220.79,1.6622]
[1734276699149,23.902374,220.83,220.75,6.4025]
[1734276699663,0.12549,220.82,220.75,6.4025]
[1734276700541,0.12549,220.8,220.75,6.4025]
[1734276700748,24.027864,220.8,220.75,6.4025]
[1734276702480,24.027864,220.8,220.74,1.5884]
[1734276706413,11.3229,220.79,220.74,1.5884]
[1734276706570,24.027864,220.78,220.7,6.5881]
[1734276707381,23.902374,220.78,220.7,6.5881]
[1734276710379,2.73572693,220.79,220.7,6.5881]
[1734276711301,11.3212,220.83,220.72,1.5884]
[1734276711513,0.12549,220.82,220.72,1.5884]
[1734276712698,23.902374,220.82,220.72,1.5884]
[1734276713401,23.902374,220.86,220.74,8.0996]
[1734276713606,20.0,220.83,220.74,8.0996]
[1734276714614,0.12549,220.85,220.75,0.67934663]
[1734276715419,20.0,220.84,220.75,0.67934663]
[1734276720221,1.7612456,220.9,220.76,1.518]
[1734276720434,0.12549,220.89,220.77,0.67923149]
[1734276720599,20.0,220.87,220.77,0.67923149]
[1734276721118,0.12549,220.89,220.78,8.0996]
[1734276721300,0.12549,220.89,220.79,0.67916618]
[1734276724113,23.776884,220.9,220.79,0.67916618]
[1734276729546,11.3171,220.91,220.79,0.67916618]
[1734276729547,1.84044519,220.92,220.8,1.5078]
[1734276729764,23.902374,220.94,220.82,1.5078]
[1734276729921,2.74130702,220.93,220.83,6.094]
[1734276731023,0.5418404,220.95,220.84,1.5078]
[1734276731226,0.5418404,220.95,220.84,2.18685565]
[1734276731820,0.5418404,220.95,220.85,7.6018]
[1734276732138,0.5418404,220.95,220.86,0.67891243]
[1734276739252,0.5418404,220.95,220.87,1.6181]
[1734276739454,0.5418404,220.95,220.88,0.67885009]
[1734276740256,0.5418404,220.95,220.89,8.0934]
[1734276740443,0.5418404,220.95,220.9,0.67878094]
[1734276740643,0.5418404,220.95,220.91,1.6181]
[1734276744263,11.3082,221.08,220.93,8.0934]
[1734276744483,11.3082,221.08,220.94,0.67863634]
[1734276745548,17.30386607,221.12,220.95,25.520474]
[1734276745860,7.612,221.15,220.98,6.4753]
[1734276746163,0.12549,221.14,220.99,0.6785024]
[1734276746667,23.902374,221.14,221.0,1.6181]
[1734276746845,23.902374,221.14,221.01,0.67850153]
[1734276747770,20.0,221.11,221.01,0.67850153]
[1734276749062,20.0,221.13,221.01,0.67850153]
[1734276751871,20.0,221.13,221.01,20.67850153]
[1734276752796,14.55528246,221.16,221.01,20.67850153]
[1734276752797,0.5418404,221.16,221.03,12.8253]
[1734276752968,0.5418404,221.16,221.07,1.5147]
[1734276754073,0.12549,221.15,221.07,1.5147]
[1734276754257,0.25098,221.15,221.07,1.5147]
[1734276754655,24.027864,221.15,221.07,1.5147]
[1734276757769,23.902374,221.13,221.07,1.5147]
[1734276758177,0.12549,221.12,221.07,1.5147]
[1734276762695,0.12549,221.12,221.02,6.4781]
[1734276762899,0.12549,221.12,221.02,8.0382]
[1734276767807,0.5418404,221.16,221.02,8.0382]
[1734276767988,20.0,221.15,221.02,8.71668948]
[1734276768576,0.12549,221.14,221.02,8.71668948]
[1734276768976,0.12549,221.14,221.02,8.0382]
[1734276769180,0.25098,221.14,221.02,8.0382]
[1734276771223,0.12549,221.1,221.02,8.0382]
[1734276771504,24.027864,221.1,221.02,8.0382]
[1734276772043,0.12549,221.1,221.02,8.0382]
[1734276772210,0.12549,221.11,221.02,8.0382]
[1734276774147,24.027864,221.08,221.02,1.5601]
[1734276774505,0.12549,221.04,220.97,7.8993]
[1734276775765,23.902374,221.08,220.97,7.8993]
[1734276775943,20.0,221.11,220.98,0.67863456]
[1734276776280,0.5418404,221.16,221.0,20.0]
[1734276776281,2.32606474,221.16,221.0,20.0]
[1734276776432,0.12549,221.15,221.02,7.8993]
[1734276777325,24.027864,221.15,221.02,7.8993]
[1734276777742,0.12549,221.11,221.02,7.8993]
[1734276779236,0.12549,221.14,221.02,7.8993]
[1734276779632,0.25098,221.11,221.02,7.8993]
[1734276780740,0.12549,221.11,221.02,8.57780585]
[1734276780941,35.081584,221.15,221.02,8.57780585]
[1734276781144,0.25098,221.14,221.02,8.57780585]
[1734276781343,35.081584,221.15,221.02,8.57780585]
[1734276781344,0.12549,221.15,221.02,8.57780585]
[1734276781853,0.25098,221.15,221.02,8.57780585]
[1734276782043,0.12549,221.15,221.02,8.57780585]
[1734276782233,20.5418404,221.16,221.06,20.0]
[1734276782234,0.5418404,221.16,221.06,20.0]
[1734276782435,0.5418404,221.16,221.07,1.6371]
[1734276783660,0.12549,221.15,221.07,1.6371]
[1734276789463,24.027864,221.15,221.07,1.6371]
[1734276790334,0.12549,221.11,221.07,1.6371]
[1734276792579,24.027864,221.11,221.07,1.6371]
[1734276793876,24.027864,221.11,221.02,7.8313]
[1734276794110,0.12549,221.07,221.02,7.8313]
[1734276794586,0.25098,221.07,221.02,7.8313]
[1734276798476,0.25098,221.07,221.02,1.5691]
[1734276799870,24.027864,221.07,220.97,1.5691]
[1734276802688,0.12549,221.03,220.97,1.5691]
[1734276802911,24.027864,221.03,220.97,1.5691]
[1734276803061,0.12549,220.99,220.91,6.1736]
[1734276803397,0.25098,220.99,220.92,1.5691]
[1734276804118,20.25098,220.99,220.92,1.5691]
[1734276805670,20.0,221.03,220.92,2.24797726]
[1734276806069,0.12549,221.02,220.92,1.5691]
[1734276809867,24.027864,221.02,220.92,1.5691]
[1734276810414,0.12549,220.98,220.92,1.5691]
[1734276811403,20.12549,220.98,220.92,1.5691]
[1734276815901,0.12549,220.97,220.92,1.5691]
[1734276816994,20.12549,220.98,220.92,1.5691]
[1734276817199,20.0,220.98,220.92,1.5691]
[1734276818130,0.12549,220.97,220.92,1.5691]
[1734276819117,0.12549,220.99,220.92,1.5691]
[1734276823314,0.12549,221.0,220.92,1.5691]
[1734276823530,0.25098,221.0,220.92,1.5691]
[1734276825120,24.027864,221.0,220.92,1.5691]
[1734276829408,0.25098,221.0,220.92,1.5691]
[1734276830649,24.027864,221.0,220.92,1.5691]
[1734276842658,20.0,221.02,220.92,1.5691]
[1734276842838,20.12549,221.01,220.92,1.5691]
[1734276843238,0.12549,221.0,220.92,1.5691]
[1734276845339,0.12549,221.0,220.92,1.4991]
[1734276848082,0.12549,220.98,220.92,1.4991]
[1734276850666,0.25098,220.98,220.92,1.4991]
[1734276852583,24.027864,220.98,220.92,1.4991]
[1734276860866,0.25098,220.93,220.86,7.9581]
[1734276861310,0.25098,220.93,220.86,1.6504]
[1734276862425,0.25098,220.93,220.81,7.8999]
[1734276863128,0.12549,220.88,220.81,7.8999]
[1734276863288,24.027864,220.88,220.81,7.8999]
[1734276865926,24.027864,220.88,220.81,1.5922]
[1734276866425,0.12549,220.84,220.76,1.5922]
[1734276866987,0.25098,220.84,220.76,1.5922]
[1734276867827,24.027864,220.84,220.76,1.5922]
[1734276872500,0.25098,220.8,220.76,1.5922]
[1734276872889,24.027864,220.8,220.7,6.1499]
[1734276873190,24.027864,220.8,220.71,1.6485]
[1734276873402,0.12549,220.76,220.71,1.6485]
[1734276874312,0.25098,220.76,220.71,1.6485]
[1734276875917,0.12549,220.81,220.71,1.6485]
[1734276876727,19.79914539,220.87,220.71,1.6485]
[1734276876900,13.14614539,220.87,220.71,1.6485]
[1734276878121,0.12549,220.83,220.71,1.6485]
[1734276878714,0.25098,220.83,220.71,1.6485]
[1734276882220,20.0,220.8,220.71,1.6485]
[1734276882424,24.027864,220.79,220.71,1.6485]
[1734276884412,35.350864,220.79,220.71,1.6485]
[1734276887108,20.0,220.8,220.71,1.6485]
[1734276887515,11.3213,220.83,220.71,1.6485]
[1734276888229,0.12549,220.82,220.71,1.6485]
[1734276889023,0.12549,220.81,220.71,1.6485]
[1734276889204,0.25098,220.79,220.71,1.6485]
[1734276889407,0.12549,220.76,220.71,1.6485]
[1734276891936,0.12549,220.79,220.71,1.6485]
[1734276892516,0.25098,220.79,220.71,1.6485]
[1734276892910,0.12549,220.79,220.71,1.6485]
[1734276893353,0.12549,220.83,220.71,1.6485]
[1734276897944,0.12549,220.83,220.73,20.0]
[1734276898629,0.12549,220.83,220.71,1.6485]
[1734276903847,11.3182,220.89,220.72,6.4177]
[1734276904045,20.0,220.86,220.75,20.0]
[1734276905152,0.25098,220.85,220.75,20.0]
[1734276906029,24.027864,220.85,220.75,20.0]
[1734276917764,24.027864,220.85,220.73,1.6654]
[1734276917969,24.027864,220.85,220.75,20.0]
[1734276918585,11.3161,220.93,220.77,1.6483]
[1734276918886,0.12549,220.92,220.77,1.6483]
[1734276919051,0.12549,220.92,220.8,1.6483]
[1734276919875,24.027864,220.92,220.8,1.6483]
[1734276920483,26.75825348,220.92,220.8,1.6483]
[1734276922595,23.776884,220.94,220.81,6.4934]
[1734276922796,11.314,220.97,220.82,1.6483]
[1734276923312,0.12549,220.96,220.82,1.6483]
[1734276923680,2.77604506,220.96,220.82,1.6483]
[1734276924105,0.25098,220.94,220.82,1.6483]
[1734276925895,0.12549,220.94,220.82,1.6483]
[1734276926095,0.12549,220.92,220.82,1.6483]
[1734276926332,0.25098,220.92,220.82,1.6483]
[1734276926717,0.12549,220.94,220.82,1.6483]
[1734276927118,0.12549,220.95,220.82,1.6483]
[1734276927318,0.25098,220.95,220.82,1.6483]
[1734276927933,0.25098,220.95,220.84,20.0]
[1734276929246,0.25098,220.95,220.82,1.6483]
[1734276930540,0.12549,220.92,220.82,1.6483]
[1734276930714,0.25098,220.92,220.82,1.6483]
[1734276932027,24.027864,220.92,220.82,1.6483]
[1734276947841,20.0,220.96,220.84,20.0]
[1734276948183,20.0,220.96,220.85,1.6414]
[1734276949077,0.25098,220.94,220.85,1.6414]
[1734276957778,0.25098,220.94,220.86,6.4638]
[1734276960364,20.0,220.96,220.86,6.4638]
[1734276960365,23.902374,220.98,220.86,6.4638]
[1734276961584,0.12549,220.97,220.86,6.4638]
[1734276961791,11.3111,221.03,220.88,1.5979]
[1734276962175,0.12549,221.02,220.88,1.5979]
[1734276963087,24.027864,221.0,220.88,1.5979]
[1734276963391,0.25098,220.96,220.88,1.5979]
[1734276966871,24.027864,220.96,220.88,1.5979]
[1734276968379,24.027864,220.94,220.78,8.0617]
[1734276968705,24.027864,220.9,220.78,8.0617]
[1734276968869,0.12549,220.86,220.78,8.0617]
[1734276969068,24.027864,220.86,220.78,8.0617]
[1734276969897,0.12549,220.91,220.8,1.5979]
[1734276970067,0.12549,220.91,220.81,6.4638]
[1734276970481,0.25098,220.93,220.81,6.4638]
[1734276970679,0.25098,220.93,220.82,1.5979]
[1734276975979,1.79601652,220.99,220.86,1.5091]
[1734276976296,11.311,221.03,220.86,1.5091]
[1734276976483,0.12549,221.02,220.86,1.5091]
[1734276977274,24.027864,221.02,220.86,1.5091]
[1734276977475,24.027864,220.98,220.86,1.5091]
[1734276978313,28.45068698,221.07,220.92,6.0726]
[1734276978615,7.09544054,221.1,220.92,6.0726]
[1734276978795,0.12549,221.1,220.92,6.0726]
[1734276979409,11.3082,221.08,220.92,6.0726]
[1734276979701,20.0,221.05,220.92,6.0726]
[1734276980284,0.12549,221.04,220.92,6.0726]
[1734276980484,24.027864,221.04,220.92,6.0726]
[1734276983704,24.027864,221.0,220.92,6.0726]
[1734276988901,0.12549,221.0,220.92,6.0726]
[1734276989083,11.3116,221.02,220.92,6.0726]
[1734276989084,24.027864,220.97,220.92,6.0726]
[1734276989690,24.027864,220.97,220.91,1.5091]
[1734276992916,24.027864,220.93,220.91,1.5091]
[1734276993491,24.027864,220.93,220.85,1.5178]
[1734276993704,24.027864,220.89,220.85,1.5178]
[1734276994018,24.027864,220.89,220.84,0.32]
[1734276995610,0.12549,220.89,220.84,0.32]
[1734276997914,20.0,220.94,220.84,0.32]
[1734276998114,0.12549,220.93,220.84,0.32]
[1734276999006,23.902374,220.93,220.84,0.32]
[1734276999221,0.12549,220.92,220.84,0.32]
[1734277002622,11.3138,220.97,220.84,0.32]
[1734277002920,0.12549,220.96,220.84,0.32]
[1734277003321,11.3138,220.97,220.84,0.32]
[1734277004113,24.027864,220.96,220.84,0.32]
[1734277005140,0.12549,220.94,220.84,0.32]
[1734277005433,24.027864,220.94,220.84,0.32]
[1734277010725,24.027864,220.9,220.84,0.32]
[1734277011233,24.027864,220.92,220.84,0.32]
[1734277015814,24.027864,220.88,220.84,0.32]
[1734277017751,44.027864,220.85,220.84,0.32]
[1734277023855,44.027864,220.85,220.84,0.0001]
[1734277024028,24.027864,220.8,220.72,6.3726]
[1734277024543,24.027864,220.8,220.7,1.6257]
[1734277024544,24.027864,220.76,220.7,1.6257]
[1734277026648,0.25098,220.72,220.67,6.3726]
[1734277026856,24.027864,220.72,220.65,1.6257]
[1734277028958,24.027864,220.72,220.62,6.3726]
[1734277029172,24.027864,220.68,220.6,1.6257]
[1734277036646,0.12549,220.64,220.6,1.6257]
[1734277036850,24.027864,220.64,220.57,6.3726]
[1734277037160,24.027864,220.64,220.54,1.6651]
[1734277039664,24.027864,220.6,220.54,1.6651]
[1734277043781,20.0,220.64,220.54,1.6651]
[1734277043946,1.82712196,220.69,220.55,20.0]
[1734277044265,81.7,220.7,220.55,20.0]
[1734277044671,0.12549,220.69,220.55,20.0]
[1734277045170,24.027864,220.69,220.55,20.0]
[1734277049651,0.12549,220.64,220.54,1.6651]
[1734277051155,24.027864,220.61,220.54,1.6651]
[1734277053584,24.027864,220.61,220.52,6.3476]
[1734277054388,24.027864,220.61,220.49,21.5733]
[1734277054590,24.027864,220.61,220.49,1.5733]
[1734277061778,26.78717217,220.61,220.49,1.5733]
[1734277062907,26.78717217,220.61,220.45,10.36598981]
[1734277062908,24.027864,220.57,220.45,10.36598981]
[1734277065495,24.027864,220.53,220.45,10.36598981]
[1734277068095,0.25098,220.53,220.45,10.36598981]
[1734277068270,20.0,220.58,220.45,10.36598981]
[1734277068476,0.12549,220.56,220.45,10.36598981]
[1734277072474,0.12549,220.56,220.42,11.3417]
[1734277076071,0.12549,220.56,220.45,20.0]
[1734277076678,10.45760817,220.61,220.45,31.3402]
[1734277076876,20.0,220.58,220.45,31.3402]
[1734277077103,10.45760817,220.61,220.45,31.3402]
[1734277077277,10.45760817,220.61,220.46,1.5038]
[1734277077484,0.12549,220.6,220.46,1.5038]
[1734277078293,24.027864,220.6,220.46,1.5038]
[1734277080019,24.027864,220.6,220.46,21.5038]
[1734277080311,24.027864,220.6,220.48,20.0]
[1734277080510,19.0096,220.66,220.5,20.0]
[1734277080698,7.6796,220.66,220.51,20.0]
[1734277081006,0.12549,220.65,220.51,20.0]
[1734277082204,0.12549,220.64,220.51,20.0]
[1734277086318,7.6796,220.66,220.52,20.68001014]
[1734277086630,7.6796,220.66,220.54,20.0]
[1734277086804,0.12549,220.65,220.54,20.0]
[1734277087617,0.12549,220.65,220.51,11.3371]
[1734277087618,0.25098,220.61,220.49,134.7]
[1734277087821,0.12549,220.6,220.47,6.1798]
[1734277088203,20.0,220.63,220.48,0.68019132]
[1734277088523,23.902374,220.65,220.48,5.69325978]
[1734277089122,0.12549,220.64,220.51,20.0]
[1734277089427,0.12549,220.64,220.52,0.67998312]
[1734277089596,0.12549,220.64,220.51,20.0]
[1734277089800,0.12549,220.64,220.51,20.68005108]
[1734277090526,0.12549,220.61,220.48,11.3388]
[1734277090834,0.25098,220.61,220.48,11.3388]
[1734277091045,24.027864,220.61,220.47,13.2642334]
[1734277091539,24.027864,220.61,220.47,6.1798]
[1734277092117,24.027864,220.61,220.5,20.0]
[1734277092322,24.027864,220.61,220.46,1.5038]
[1734277093726,24.027864,220.61,220.47,20.0]
[1734277094457,0.12549,220.57,220.47,20.0]
[1734277094740,0.25098,220.57,220.47,20.0]
[1734277096137,24.027864,220.57,220.47,20.0]
[1734277096339,24.027864,220.57,220.45,20.0]
[1734277097330,24.027864,220.57,220.43,20.0]
[1734277101946,24.027864,220.55,220.41,20.0]
[1734277102437,24.027864,220.55,220.42,20.0]
[1734277105962,0.12549,220.56,220.43,0.68036158]
[1734277106162,0.25098,220.56,220.43,20.68036158]
[1734277106767,0.25098,220.56,220.45,20.0]
[1734277107954,1.6079,220.58,220.46,0.68023767]